[Event "37th ECCC 2022"]
[Site "Mayrhofen"]
[Date "2022.10.05"]
[Round "3.40"]
[White "Urkedal, Frode Olav Olsen"]
[Black "Georgiadis, Ioannis"]
[Result "1/2-1/2"]
[ECO "E16"]
[WhiteElo "2523"]
[BlackElo "2467"]
[Annotator "TA"]
[PlyCount "67"]
[EventDate "2022.10.03"]
[EventType "team-tourn"]
[EventCountry "AUT"]
[SourceTitle "playchess.com"]
[Source "ChessBase"]
[SourceQuality "1"]
[TimeControl "40/5400+30:1800+30"]

{[%evp 18,67,31,29,25,25,37,40,41,36,33,33,38,22,45,47,52,37,43,41,38,45,98,27,62,62,45,51,44,14,22,5,21,6,7,8,4,9,9,6,6,6,12,0,0,0,0,0,4,0,0,-16]} 1. d4 {[%emt 0:01:01]} Nf6 {[%emt 0:00:04]} 2. c4 {[%emt 0:00:05]} e6 {[%emt 0:00:03]} 3. Nf3 {[%emt 0:00:07]} b6 {[%emt 0:00:09]} 4. g3 {[%emt 0:00:05]} Bb7 {[%emt 0:00:17]} 5. Bg2 {[%emt 0:00:07]} Bb4+ {[%emt 0:00:29]} 6. Bd2 {[%emt 0:00:07]} c5 {[%emt 0:00:16]} 7. Bxb4 {[%emt 0:00:07]} cxb4 {[%emt 0:00:05]} 8. O-O {[%emt 0:00:06]} O-O {[%emt 0:00:20]} 9. Qd3 {[%emt 0:00:04]} d6 {[%emt 0:00:55]} 10. Nbd2 {[%emt 0:00:42]} Qc7 {[%emt 0:00:44] E16: Queen's Indian: 4 g3 Bb7 5 Bg2 Bb4+.} 11. Rfd1 {[%emt 0:00:29]} Re8 {[%emt 0:02:43]} 12. Ne1 {[%emt 0:06:36] [#]} Nc6 $146 {[%emt 0:08:41] White is slightly better.} ({Predecessor:} 12... Bxg2 13. Kxg2 e5 14. e4 Nc6 15. Nc2 a5 16. f3 Rad8 17. Rac1 Nd7 18. Nf1 f5 19. dxe5 Ndxe5 {½-½ (42) Ragger,M (2646)-Kuljasevic,D (2591) Austria 2014}) 13. Nc2 {[%emt 0:03:46]} a5 {[%emt 0:00:20]} 14. a3 {[%emt 0:08:47]} bxa3 {[%emt 0:01:15]} 15. Qxa3 {[%emt 0:01:16]} Red8 {[%emt 0:06:25]} 16. e4 {[%emt 0:04:52]} e5 {[%emt 0:06:49]} 17. Qe3 {[%emt 0:05:26]} Nxd4 {[%emt 0:08:58]} 18. Nxd4 {[%emt 0:00:08]} exd4 {[%emt 0:00:05]} 19. Qxd4 {[%emt 0:00:07]} Bc6 {[%emt 0:00:08] [#]} (19... Nd7 $14) 20. Nb1 {[%emt 0:05:24]} (20. Nf1 $1 $16) 20... b5 {[%emt 0:10:21]} 21. cxb5 {[%emt 0:02:31]} Bxb5 {[%emt 0:00:16]} 22. Nc3 {[%emt 0:09:04]} Bc6 {[%emt 0:00:18]} 23. Rd2 {[%emt 0:01:56]} Rab8 {[%emt 0:08:16] The position is equal.} 24. Rad1 {[%emt 0:00:17][%cal Oe4e5]} h6 {[%emt 0:02:57]} 25. e5 {[%emt 0:11:41]} dxe5 {[%emt 0:21:24]} 26. Qc4 {[%emt 0:01:48] [#] Strongly threatening Rxd8+.} Rxd2 {[%emt 0:01:35]} 27. Rxd2 {[%emt 0:00:17]} e4 $1 {[%emt 0:00:38]} 28. Nxe4 {[%emt 0:01:22]} Ne8 {[%emt 0:00:37]} 29. Rc2 {[%emt 0:11:59]} Bxe4 {[%emt 0:01:48]} (29... Rb6 {seems wilder.} 30. Qd4 Rb4 31. Qd3 Bxe4 32. Bxe4 Qe5) 30. Qxc7 {[%emt 0:07:19]} Nxc7 {[%emt 0:00:11]} 31. Bxe4 {[%emt 0:00:06]} Ne6 {[%emt 0:00:28]} 32. Bd5 {[%emt 0:00:36]} Kf8 {[%emt 0:00:55]} 33. Bxe6 {[%emt 0:02:59]} fxe6 {[%emt 0:00:05]} 34. Kf1 {[%emt 0:00:25] Weighted Error Value: White=0.09 (flawless) /Black=0.07 (flawless)} 1/2-1/2

[Event "37th ECCC 2022"]
[Site "Mayrhofen"]
[Date "2022.10.05"]
[Round "3.41"]
[White "Cvitan, Ognjen"]
[Black "Haldorsen, Benjamin"]
[Result "1/2-1/2"]
[ECO "D45"]
[WhiteElo "2446"]
[BlackElo "2449"]
[Annotator "TA"]
[PlyCount "63"]
[EventDate "2022.10.03"]
[EventType "team-tourn"]
[EventCountry "AUT"]
[SourceTitle "playchess.com"]
[Source "ChessBase"]
[SourceQuality "1"]
[TimeControl "40/5400+30:1800+30"]

{[%evp 15,63,17,29,27,26,19,29,17,31,23,35,26,35,30,31,39,61,35,47,18,28,15,13,11,13,15,15,4,15,22,22,4,4,4,11,0,0,0,0,0,0,0,0,0,3,0,0,0,0,0]} 1. d4 {[%emt 0:00:24]} d5 {[%emt 0:00:24]} 2. c4 {[%emt 0:00:29]} e6 {[%emt 0:00:39]} 3. Nc3 {[%emt 0:01:42]} c6 {[%emt 0:00:08]} 4. e3 {[%emt 0:02:42]} Nf6 {[%emt 0:00:45]} 5. Nf3 {[%emt 0:01:40]} a6 {[%emt 0:02:00]} 6. b3 {[%emt 0:06:02]} Bb4 {[%emt 0:00:22]} 7. Bd2 {[%emt 0:00:50]} O-O {[%emt 0:01:18]} 8. Bd3 {[%emt 0:02:12]} Nbd7 {[%emt 0:00:27]} 9. O-O {[%emt 0:00:27][%cal Oc3d5] D45: Semi-Slav: 5 e3.} Bd6 {[%emt 0:00:12]} 10. Re1 {[%emt 0:06:13]} h6 {[%emt 0:00:11]} 11. Rc1 {[%emt 0:05:46] White has an edge.} e5 {[%emt 0:09:53] [#] Strongly threatening ...e4.} 12. cxd5 {[%emt 0:04:31]} cxd5 {[%emt 0:00:58] Hoping for ...e4.} 13. dxe5 {[%emt 0:09:20]} Nxe5 {[%emt 0:01:25]} 14. Nxe5 {[%emt 0:01:27]} Bxe5 {[%emt 0:00:06]} 15. h3 {[%emt 0:05:07] [#]} d4 $146 {[%emt 0:27:05]} ({Predecessor:} 15... Bb8 16. Ne2 Qd6 17. Ng3 Ne4 18. Nxe4 dxe4 19. Bxe4 Qh2+ 20. Kf1 Bd7 21. a4 Be5 {1-0 (40) Gupta,A (2612)-Hakobyan,A (2621) Sharjah 2021}) 16. Ne4 {[%emt 0:09:59][%cal Bc3e4,Be4c5,Bc5d3][%mdl 32]} dxe3 {[%emt 0:10:05]} 17. Bxe3 {[%emt 0:01:31]} (17. Rxe3 $5 {[%cal Rd1f3]} Bd7 18. Nxf6+ Qxf6 19. Be4 $14) 17... Bf5 {[%emt 0:02:32]} 18. Nc5 {[%emt 0:09:56]} Bxd3 {[%emt 0:02:29] The position is equal.} 19. Nxd3 {[%emt 0:01:34]} Bd4 {[%emt 0:03:55]} 20. Bxd4 {[%emt 0:02:20]} Qxd4 {[%emt 0:00:07]} 21. Nc5 {[%emt 0:00:16]} Qxd1 {[%emt 0:05:22]} 22. Rcxd1 {[%emt 0:05:38]} b6 {[%emt 0:04:50]} 23. Nd7 {[%emt 0:03:36]} Nxd7 {[%emt 0:01:40]} 24. Rxd7 $11 {[%emt 0:00:09][%mdl 4096] Endgame KRR-KRR} Rfd8 {[%emt 0:00:10]} 25. Ree7 {[%emt 0:00:33]} Rxd7 {[%emt 0:00:11]} 26. Rxd7 {[%emt 0:00:04] KR-KR} Rc8 {[%emt 0:05:31]} 27. Rd6 {[%emt 0:00:54]} Rc1+ {[%emt 0:00:21]} 28. Kh2 {[%emt 0:00:05]} Rc2 {[%emt 0:00:07][%csl LRa2,LRf2]} 29. a4 {[%emt 0:06:50]} b5 {[%emt 0:00:16]} 30. f3 {[%emt 0:02:19]} Rb2 {[%emt 0:00:54]} 31. Rxa6 {[%emt 0:00:07]} Rxb3 {[%emt 0:00:04]} 32. axb5 {[%emt 0:00:06] Weighted Error Value: White=0.04 (flawless) /Black=0.04 (flawless)} 1/2-1/2

[Event "37th ECCC 2022"]
[Site "Mayrhofen"]
[Date "2022.10.05"]
[Round "3.42"]
[White "Ranaldi, Lucas"]
[Black "Haag, Gregor"]
[Result "1/2-1/2"]
[ECO "A10"]
[WhiteElo "2369"]
[BlackElo "2316"]
[Annotator "TA"]
[PlyCount "47"]
[EventDate "2022.10.03"]
[EventType "team-tourn"]
[EventCountry "AUT"]
[SourceTitle "playchess.com"]
[Source "ChessBase"]
[SourceQuality "1"]
[TimeControl "40/5400+30:1800+30"]

{[%evp 9,47,0,15,2,29,20,0,7,14,20,15,0,0,10,4,0,0,0,0,0,0,0,0,0,0,0,0,0,0,0,0,0,0,0,0,0,0,0,0,0]} 1. c4 {[%emt 0:00:04]} g6 {[%emt 0:00:13]} 2. e4 {[%emt 0:01:15]} e5 {[%emt 0:00:33]} 3. d4 {[%emt 0:00:20]} Nf6 {[%emt 0:02:59]} 4. Nf3 {[%emt 0:00:17]} exd4 {[%emt 0:03:11]} 5. e5 {[%emt 0:00:37]} Bb4+ {[%emt 0:01:32]} 6. Bd2 {[%emt 0:00:28] A10: English Opening: Unusual Replies for Black.} Qe7 {[%emt 0:00:09]} 7. Bxb4 {[%emt 0:00:33]} Qxb4+ {[%emt 0:00:06] The position is equal.} 8. Qd2 {[%emt 0:00:16]} Qxd2+ {[%emt 0:00:25]} 9. Nbxd2 {[%emt 0:00:13]} Nh5 {[%emt 0:00:44]} 10. Nxd4 {[%emt 0:00:36]} Nc6 {[%emt 0:01:17]} 11. N2f3 {[%emt 0:01:22]} b6 {[%emt 0:12:52]} 12. Nxc6 {[%emt 0:19:29]} dxc6 {[%emt 0:00:48]} 13. g3 {[%emt 0:00:23]} c5 {[%emt 0:04:16] Inhibits Nd4.} 14. Bg2 {[%emt 0:00:47][%cal Of3d4]} Bb7 {[%emt 0:00:18]} 15. O-O {[%emt 0:09:50][%cal Be1g1,Bg1g2,Bg2f2][%mdl 32]} Ke7 {[%emt 0:08:33]} 16. Rad1 {[%emt 0:18:50]} Rad8 {[%emt 0:24:41]} 17. Ng5 {[%emt 0:01:51]} Bxg2 {[%emt 0:02:01]} 18. Kxg2 {[%emt 0:00:15]} Ng7 {[%emt 0:10:31]} 19. f4 {[%emt 0:13:23]} h5 {[%emt 0:07:23]} 20. Kf2 {[%emt 0:09:21]} Nf5 {[%emt 0:02:54] [#]} 21. Nf3 $146 {[%emt 0:02:46]} ({Predecessor:} 21. b3 a5 22. a4 Nd4 23. Rd3 Ne6 24. Rfd1 Rxd3 25. Rxd3 Nd4 26. Ke3 Rd8 27. Ke4 f6 28. Nf3 fxe5 29. Kxe5 Nxf3+ 30. Rxf3 {0-1 (40) Ding,L (2811)-Shankland,S (2705) Chess.com INT 2019}) 21... Ke6 {[%emt 0:03:15]} 22. Ng5+ {[%emt 0:09:52]} Ke7 {[%emt 0:00:11]} 23. Nf3 {[%emt 0:02:49]} Ke6 {[%emt 0:01:33]} 24. Ng5+ {[%emt 0:03:53] An interesting draw.  Weighted Error Value: White=0.01 (flawless) /Black=0.01 (flawless)} 1/2-1/2

[Event "37th ECCC 2022"]
[Site "Mayrhofen"]
[Date "2022.10.05"]
[Round "3.43"]
[White "Noe, Christopher"]
[Black "Korobov, Anton"]
[Result "0-1"]
[ECO "D35"]
[WhiteElo "2503"]
[BlackElo "2672"]
[Annotator "TA"]
[PlyCount "74"]
[EventDate "2022.10.03"]
[EventType "team-tourn"]
[EventCountry "AUT"]
[SourceTitle "playchess.com"]
[Source "ChessBase"]
[SourceQuality "1"]
[TimeControl "40/5400+30:1800+30"]

{[%evp 12,74,16,-12,0,4,18,9,10,13,29,23,27,21,30,27,43,-6,0,0,0,0,0,0,0,0,0,0,0,0,2,2,2,-89,-90,-140,-132,-122,-104,-96,-110,-95,-101,-96,-96,-159,-147,-204,-172,-228,-228,-464,-450,-459,-459,-4137,-4137,-4133,-4133,-5733,-5726,-5725,-5718,-29984,-29968]} 1. d4 {[%emt 0:00:06]} Nf6 {[%emt 0:00:12]} 2. c4 {[%emt 0:00:05]} e6 {[%emt 0:00:05]} 3. Nc3 {[%emt 0:00:26]} d5 {[%emt 0:00:05]} 4. cxd5 {[%emt 0:03:50]} Nxd5 {[%emt 0:00:25]} 5. e4 {[%emt 0:00:21]} Nxc3 {[%emt 0:00:05]} 6. bxc3 {[%emt 0:00:04]} c5 {[%emt 0:00:04]} 7. a3 {[%emt 0:00:29] Recently 7.Rb1 got a lot of attention.} cxd4 {[%emt 0:00:17] D35: Queen's Gambit Declined: Exchange Variation.} 8. cxd4 {[%emt 0:00:06]} e5 {[%emt 0:00:10]} 9. Nf3 {[%emt 0:12:33][%cal Bg1f3,Bf3d4,Bd4b5][%mdl 32] has lost popularity (9.d5).} exd4 {[%emt 0:00:52] The position is equal.} 10. Qxd4 {[%emt 0:08:49]} (10. Nxd4 {is more complex.} Bc5 11. Bb5+ Nd7 12. O-O) 10... Qxd4 {[%emt 0:10:39]} 11. Nxd4 {[%emt 0:00:06]} Bc5 {[%emt 0:00:13]} 12. Nb5 {[%emt 0:10:52]} Na6 {[%emt 0:01:12] Inhibits Nc7+.} 13. Bc4 {[%emt 0:00:23]} O-O {[%emt 0:01:26][%cal Bh8f8,Bf8e8,Be8e6][%mdl 32] [#]} 14. Bb2 $146 {[%emt 0:09:40]} (14. Ke2 $14 {is more appropriate.}) ({Predecessor:} 14. O-O Be6 15. Bd5 Bxd5 16. exd5 Rad8 17. Rd1 Rfe8 18. d6 Nb8 19. Bf4 Nd7 20. Rab1 {½-½ (47) Nisipeanu,L (2677)-Naiditsch,A (2706) Deizisau 2013}) 14... Re8 {[%emt 0:11:25]} 15. e5 {[%emt 0:04:37]} Be6 {[%emt 0:05:30]} 16. Bxe6 {[%emt 0:02:36]} Rxe6 {[%emt 0:02:37]} 17. O-O {[%emt 0:06:44]} Rb6 {[%emt 0:04:48]} 18. a4 {[%emt 0:01:26]} Nb4 $36 {[%emt 0:00:07][%mdl 2048] Black is pushing.} 19. Rfd1 {[%emt 0:07:12]} a6 {[%emt 0:01:59]} 20. Bd4 {[%emt 0:02:12]} Rxb5 {[%emt 0:12:23]} 21. axb5 {[%emt 0:01:09]} Bxd4 {[%emt 0:00:29]} 22. Rab1 {[%emt 0:25:50] [#]} (22. Rxd4 Nc2 23. Rda4 Nxa1 24. Rxa1 a5 $15) (22. bxa6 $11 {remains equal.} Bxa1 23. axb7) 22... Bc5 $1 $17 {[%emt 0:01:23] Black keeps a firm grip on the game.} 23. bxa6 {[%emt 0:00:15]} ({White should try} 23. Rd7) 23... bxa6 {[%emt 0:00:32][%cal Bb7a6,Ba6a5,Ba5a4,Ba4a3,Ba3a2][%mdl 32]} 24. Rbc1 {[%emt 0:00:10]} Bf8 {[%emt 0:01:54]} 25. Rc7 {[%emt 0:00:19]} a5 {[%emt 0:03:30] Threatens to win with ...a4.} 26. Rdd7 {[%emt 0:00:29]} Re8 {[%emt 0:04:03]} 27. g3 {[%emt 0:01:52]} g6 {[%emt 0:07:30]} (27... Rxe5 28. Rd8 $16) 28. Rxf7 {[%emt 0:01:08] [#]} (28. Kg2 $142) 28... a4 $1 {[%emt 0:00:48]} ({Worse is} 28... Rxe5 29. Rfd7 $17) 29. Rf3 {[%emt 0:00:37]} (29. Rb7 $17 {was worth a try.}) 29... a3 {[%emt 0:00:21]} ({Inferior is} 29... Rxe5 30. Rc8 Rf5 31. Rxf5 gxf5 32. Ra8 $11) 30. Ra7 {[%emt 0:00:18] Prevents Ra8.} (30. Rxa3 $142 Nd5 31. Rd7) 30... a2 $19 {[%emt 0:02:02]} ({And not} 30... Rxe5 31. Ra8 $11) 31. Kg2 $2 {[%emt 0:00:33]} (31. Rf4 {is a better defense.}) 31... Bc5 {[%emt 0:04:57]} 32. Ra4 {[%emt 0:00:30]} Rf8 {[%emt 0:01:32] And now ...Rxf3 would win.} 33. e6 {[%emt 0:00:28]} (33. Rc3 $142 Bd4 34. Rc1 Rxf2+ 35. Kh3) 33... Rxf3 {[%emt 0:00:29]} 34. Kxf3 {[%emt 0:00:04]} Kf8 {[%emt 0:00:08]} 35. Ke4 {[%emt 0:00:36]} Bxf2 {[%emt 0:00:15]} 36. Ke5 {[%emt 0:00:56]} Ke7 {[%emt 0:00:17]} 37. Ra8 {[%emt 0:00:29]} Nc6+ {[%emt 0:00:48] Weighted Error Value: White=0.93/Black=0.04 (flawless)} 0-1

[Event "37th ECCC 2022"]
[Site "Mayrhofen"]
[Date "2022.10.05"]
[Round "3.44"]
[White "Santos Latasa, Jaime"]
[Black "David, Alberto"]
[Result "1-0"]
[ECO "B67"]
[WhiteElo "2677"]
[BlackElo "2521"]
[Annotator "TA"]
[PlyCount "101"]
[EventDate "2022.10.03"]
[EventType "team-tourn"]
[EventCountry "AUT"]
[SourceTitle "playchess.com"]
[Source "ChessBase"]
[SourceQuality "1"]
[TimeControl "40/5400+30:1800+30"]

{[%evp 18,101,22,20,51,30,37,39,42,41,22,28,39,0,38,50,46,37,70,0,54,61,58,-32,-27,-35,-45,-138,-146,-136,0,0,0,0,0,0,127,104,716,707,629,623,609,0,0,0,0,0,0,0,0,0,0,0,0,0,0,0,1332,1202,829,672,12832,12832,12833,12833,12839,12840,12840,12841,12841,0,12838,12832,12833,12833,12833,12834,12834,12835,12841,12841,12841,12842,12841,12841]} 1. e4 {[%emt 0:00:03]} c5 {[%emt 0:00:17]} 2. Nf3 {[%emt 0:00:04]} d6 {[%emt 0:00:09]} 3. d4 {[%emt 0:00:04]} cxd4 {[%emt 0:00:04]} 4. Nxd4 {[%emt 0:00:06]} Nf6 {[%emt 0:00:04]} 5. Nc3 {[%emt 0:00:04]} Nc6 {[%emt 0:00:09]} 6. Bg5 {[%emt 0:00:11]} e6 {[%emt 0:00:06]} 7. Qd2 {[%emt 0:00:04]} a6 {[%emt 0:00:13]} 8. O-O-O {[%emt 0:00:15]} Bd7 {[%emt 0:00:22]} 9. f3 {[%emt 0:01:30]} Nxd4 {[%emt 0:16:14]} 10. Qxd4 {[%emt 0:00:21]} Be7 {[%emt 0:00:04] B67: Sicilian: Richter-Rauzer: 7...a6 8 0-0-0 Bd7, lines without 9 f4 Be7.} 11. Kb1 {[%emt 0:00:08]} Qc7 {[%emt 0:00:48]} 12. g4 {[%emt 0:03:44]} h5 {[%emt 0:20:15] White is slightly better.} 13. gxh5 $1 {[%emt 0:00:06]} Rxh5 {[%emt 0:00:18]} 14. h4 {[%emt 0:03:01]} b5 {[%emt 0:02:16]} 15. a3 {[%emt 0:12:14] [#]} Rc8 $146 {[%emt 0:19:30]} ({Predecessor:} 15... Rb8 16. Be2 a5 17. b4 Rc8 18. Kb2 Kf8 19. Rc1 Qb7 20. f4 axb4 21. axb4 e5 {1-0 (36) Shablinsky,M (2439)-Salvador Marques,C (2424) ICCF email 2008}) 16. f4 {[%emt 0:08:09]} Qc5 {[%emt 0:04:20]} 17. Qd2 {[%emt 0:05:54]} Bc6 {[%emt 0:03:51]} 18. Bg2 {[%emt 0:02:14]} (18. Qe2 $14) 18... b4 {[%emt 0:06:39]} ({Black should play} 18... a5 $1 $11) 19. axb4 $14 {[%emt 0:00:33]} Qxb4 {[%emt 0:00:04]} 20. Rhe1 {[%emt 0:07:05]} (20. f5 $14) 20... Rb8 $15 {[%emt 0:10:00][%csl Gb8][%cal Rb4b2]} 21. b3 {[%emt 0:00:13]} a5 {[%emt 0:01:19][%cal Ba6a5,Ba5a4,Ba4b3][%mdl 32] aiming for ...a4.} 22. Ka2 {[%emt 0:14:23]} (22. f5 $15 e5 23. Bf3) 22... d5 $1 $17 {[%emt 0:10:06] Strongly threatening ...a4.} 23. Nxd5 {[%emt 0:02:08]} Qa3+ {[%emt 0:02:38]} (23... exd5 24. Qxb4 axb4 25. exd5 $17) 24. Kb1 {[%emt 0:00:10]} a4 {[%emt 0:00:12]} 25. Nxe7 {[%emt 0:02:36] Really sharp!} axb3 {[%emt 0:00:27]} 26. c4 {[%emt 0:00:23]} Ra8 {[%emt 0:02:19]} 27. Qb2 $16 {[%emt 0:00:51]} Qxe7 {[%emt 0:00:26][%mdl 8192]} (27... Qa2+ $16 28. Qxa2 bxa2+ 29. Ka1 Kxe7) 28. e5 $1 $18 {[%emt 0:00:47]} Bxg2 {[%emt 0:00:25]} 29. exf6 {[%emt 0:00:13]} gxf6 {[%emt 0:00:42]} 30. Qxg2 $40 {[%emt 0:00:08][%mdl 128] White attacks.} (30. Bxf6 $18 Qa7 31. Qxg2 Qa2+ 32. Qxa2 bxa2+ 33. Ka1) 30... Ra2 $11 {[%emt 0:00:37]} 31. Qc6+ {[%emt 0:19:14]} (31. Qf3 Ra1+ $3 {[%mdl 512]} 32. Kb2 Qa3+ 33. Kc3 b2+ 34. Kd4 Qxf3 35. Rxa1 bxa1=Q+ 36. Rxa1 fxg5 37. Kc5 gxh4+ 38. Kd4 h3 39. Rb1 h2 40. Rb8+ Ke7 41. Rb1 h1=Q 42. Rxh1 Rxh1 43. Kc5 Qxf4 44. Kb6 Rb1+ 45. Ka5 Qc7+ 46. Ka6 Qb6#) 31... Kf8 {[%emt 0:00:04][%cal Oa2a1] Threatens to win with ...Ra1+!} 32. Bh6+ {[%emt 0:00:36]} Rxh6 {[%emt 0:00:57]} 33. Qc8+ {[%emt 0:00:03]} Kg7 {[%emt 0:00:13][%cal Oa2a1]} 34. Rg1+ {[%emt 0:00:05]} Rg6 {[%emt 0:00:06]} 35. Rxg6+ {[%emt 0:00:04]} Kxg6 {[%emt 0:00:05][%mdl 4096] Endgame KQR-KQR} 36. Qg8+ {[%emt 0:00:17]} Kf5 {[%emt 0:01:12][%cal Oa2a1]} 37. Qh7+ {[%emt 0:00:12]} Kg4 $2 {[%emt 0:00:41][%mdl 8192] [#]} (37... Kxf4 $11 38. Rd4+ Kg3 39. Qd3+ Kh2 40. Qxb3 Rf2) 38. Rg1+ $1 $18 {[%emt 0:04:34]} Kxf4 {[%emt 0:00:04] [#]} 39. Qh6+ $1 {[%emt 0:00:15]} Kf3 {[%emt 0:00:58][%cal Oa2a1]} 40. Qc1 {[%emt 0:00:44] White threatens Qc3+ and mate.} Qc5 {[%emt 0:00:42]} 41. Qc3+ {[%emt 0:30:26]} ({Inferior is} 41. Qf1+ Rf2 42. Qd3+ Kf4 43. Qg3+ Kf5 $11) 41... Kf2 {[%emt 0:07:20]} 42. Qg3+ {[%emt 0:00:00]} Ke2 {[%emt 0:00:09]} 43. Qg4+ {[%emt 0:00:00]} Kf2 {[%emt 0:05:47]} 44. Qg3+ {[%emt 0:00:00]} ({Worse is} 44. Rg2+ Kf1 45. Qf3+ Ke1 $11) 44... Ke2 {[%emt 0:00:04] ( -> ...Qf5+)} 45. Qe1+ {[%emt 0:00:00] White is clearly winning.} Kf3 {[%emt 0:00:50]} 46. Qd1+ {[%emt 0:00:00]} Kf4 {[%emt 0:15:35]} 47. Qg4+ {[%emt 0:00:00]} Ke5 {[%emt 0:02:18]} 48. Qg3+ {[%emt 0:00:00]} Kd4 {[%emt 0:01:08]} 49. Qf4+ {[%emt 0:00:00]} Kd3 {[%emt 0:01:21]} 50. Qf3+ {[%emt 0:00:00]} Kxc4 {[%emt 0:00:28]} 51. Rg4+ {[%emt 0:00:00] Weighted Error Value: White=0.34/Black=0.18 (very precise)} 1-0

[Event "37th ECCC 2022"]
[Site "Mayrhofen"]
[Date "2022.10.05"]
[Round "3.45"]
[White "Repplinger, Marc"]
[Black "Idani, Pouya"]
[Result "0-1"]
[ECO "E46"]
[WhiteElo "2190"]
[BlackElo "2623"]
[Annotator "TA"]
[PlyCount "62"]
[EventDate "2022.10.03"]
[EventType "team-tourn"]
[EventCountry "AUT"]
[SourceTitle "playchess.com"]
[Source "ChessBase"]
[SourceQuality "1"]
[TimeControl "40/5400+30:1800+30"]

{[%evp 21,62,-24,-1,-11,-2,-13,-14,-31,-18,-28,-23,-49,-34,-57,-55,-101,-86,-84,-112,-97,-101,-94,-98,-109,-115,-112,-109,-102,-20,-232,-233,-707,-355,-378,-270,-968,-972,-921,-721,-1007,-966,-1125,-1089]} 1. d4 {[%emt 0:00:04]} Nf6 {[%emt 0:00:22]} 2. c4 {[%emt 0:00:06]} e6 {[%emt 0:00:05]} 3. Nc3 {[%emt 0:00:08]} Bb4 {[%emt 0:00:05]} 4. e3 {[%emt 0:00:07]} O-O {[%emt 0:01:11]} 5. Bd2 {[%emt 0:00:09]} c5 {[%emt 0:01:54]} 6. Nf3 {[%emt 0:00:35]} cxd4 {[%emt 0:00:28]} 7. exd4 {[%emt 0:00:12]} d5 {[%emt 0:00:11]} 8. a3 {[%emt 0:00:11]} Bxc3 {[%emt 0:01:44]} 9. Bxc3 {[%emt 0:00:13]} dxc4 {[%emt 0:01:58]} 10. Bxc4 {[%emt 0:01:14]} b6 {[%emt 0:00:10]} 11. O-O {[%emt 0:12:46]} Ba6 {[%emt 0:05:30]} 12. b3 {[%emt 0:05:10] [#] E43: Nimzo-Indian: Rubinstein: 4...b6.} Nd5 $146 {[%emt 0:01:20]} ({Predecessor:} 12... Bxc4 13. bxc4 Nbd7 14. Rc1 Rc8 15. Qa4 Qc7 16. Bb4 Rfd8 17. Rfd1 Qb7 18. Qb3 h6 19. h3 Nf8 {1-0 (42) Nakamura,H (2787)-Carlsen,M (2853) Chess.com INT 2016}) 13. Bd2 {[%emt 0:01:12]} Bb7 {[%emt 0:00:38]} 14. Re1 {[%emt 0:04:49] The position is equal.} Nc6 {[%emt 0:02:09][%cal Bb8c6,Bc6e7,Be7f5][%mdl 32]} 15. Rc1 {[%emt 0:03:43]} Rc8 {[%emt 0:03:56]} 16. Bd3 {[%emt 0:15:34]} h6 {[%emt 0:01:38][%cal Bh7h6,Bh6h5][%mdl 32]} (16... Qd6 {keeps more tension.} 17. Ng5 h6 18. Bh7+ Kh8) 17. Re4 {[%emt 0:05:41][%cal Od2h6]} Nce7 {[%emt 0:12:29] Pair of Knights!} 18. Ne5 {[%emt 0:29:34]} (18. Rxc8 $15 Qxc8 19. Re1) 18... Rxc1 $17 {[%emt 0:04:48]} 19. Qxc1 {[%emt 0:00:17][%cal Od2h6] [#] And now Bxh6! would win.} Nf5 {[%emt 0:00:56]} 20. Rg4 {[%emt 0:02:06] Hoping for Bxh6.} h5 {[%emt 0:03:33]} 21. Rg5 {[%emt 0:03:54]} f6 $36 {[%emt 0:00:47][%mdl 2048] Black is on the roll.} 22. Rxf5 {[%emt 0:07:47]} exf5 {[%emt 0:00:07]} 23. Ng6 {[%emt 0:00:27]} Re8 {[%emt 0:10:10]} 24. Qd1 {[%emt 0:01:07] [#]} Ne7 {[%emt 0:00:14]} (24... Kf7 $2 25. Qxh5 Ke6 26. Nh4 $16 (26. Qxf5+ Kd6 $18)) (24... Nc7 $1 $17 25. Bf4 (25. Qxh5 $2 Qxd4 26. Qh8+ Kf7 $19) 25... Ne6) 25. Qxh5 $2 {[%emt 0:01:04] This move loses the game for White.} (25. Qe2 $11 Nxg6 26. Bc4+ Kf8 27. Bb4+ Re7 28. Qe6) 25... Qxd4 $19 {[%emt 0:05:37] Really sharp!} ({Inferior is} 25... Nxg6 26. Qxg6 Re7 27. Bb4 $11) 26. Qe2 {[%emt 0:04:18]} ({Reject} 26. Bc4+ Bd5 27. Bc3 Qe4 $19) (26. Nf4 Qa1+ 27. Bf1) 26... Kf7 {[%emt 0:11:14][%cal Bg8f7,Bf7e7,Be7d8][%mdl 32]} 27. Nf4 {[%emt 0:00:15]} Qa1+ {[%emt 0:02:16]} 28. Be1 $2 {[%emt 0:00:12]} (28. Qf1 Qxf1+ 29. Kxf1) 28... Nd5 {[%emt 0:00:49] Black is clearly winning.} 29. Qh5+ {[%emt 0:01:01]} Ke7 {[%emt 0:00:47]} 30. Nxd5+ {[%emt 0:00:33]} Bxd5 {[%emt 0:00:13]} 31. Kf1 {[%emt 0:00:34]} Kd8 {[%emt 0:01:00] Weighted Error Value: White=1.04/Black=0.48} 0-1